Cogmind - Beta 15 @@@ ROGUE MODE // 2025.07.11 @ 13:40:32 Player: Dingot Result: Destroyed by G-34 Mercenary with Small Laser Performance ------------- Evolutions (1) 500 Regions Visited (3) 600 Robots Destroyed (10) 50 Value Destroyed (196) 196 Prototype IDs (1) 20 Alien Tech Used (0) 0 Bonus (0) 0 TOTAL SCORE: 1366 Bonus ------- None Cogmind --------- Core Integrity 0/400 Matter 148/300 Energy 250/250 System Corruption 0% Temperature Cool (6) Movement Treading (240) Ox1 Location -9/Materials Parts ------- > --- POWER (1) -------- Ion Engine > --- PROPULSION (3) --- Light Treads > --- UTILITY (3) ------ Large Storage Unit Transport Network Coupler Improved Targeting Computer > --- WEAPON (2) ------- (None) > --- INVENTORY (15) --- VTOL Module VTOL Module Medium Storage Unit Mini Grenade Launcher Peak State ------------ > --- POWER ------------ Light Ion Engine > --- PROPULSION ------- Light Treads Light Treads > --- UTILITY ---------- Transport Network Coupler Improved Targeting Computer Shield Generator > --- WEAPON ----------- Assault Rifle Improved Assault Rifle > --- INVENTORY -------- Assault Rifle Mini Grenade Launcher [Rating: 12] Favorites ----------- Power Light Ion Engine Engine Light Ion Engine Propulsion Light Treads Treads Light Treads Utility Shield Generator Device Shield Generator Storage Large Storage Unit Processor Improved Targeting Computer Weapon Assault Rifle Energy Gun EM Shotgun Ballistic Gun Assault Rifle Build | -11 -10 -10 -9 ------- Run | Yrd Mat Min Mat Slots Evolved 2 | . . . 2 Power . | . . . . Propulsion 1 | . . . 1 Utility 1 | . . . 1 Weapon . | . . . . Parts Attached 18 | 5 . . 13 Power 3 | 1 . . 2 Engine 3 | 1 . . 2 Core . | . . . . Reactor . | . . . . Propulsion 5 | 2 . . 3 Treads 5 | 2 . . 3 Leg . | . . . . Wheel . | . . . . Hover . | . . . . Flight . | . . . . Utility 4 | . . . 4 Device 1 | . . . 1 Storage 1 | . . . 1 Processor 2 | . . . 2 Hackware . | . . . . Protection . | . . . . Artifact . | . . . . Weapon 6 | 2 . . 4 Energy Gun 3 | . . . 3 Energy Cannon . | . . . . Ballistic Gun 3 | 2 . . 1 Ballistic Cannon . | . . . . Launcher . | . . . . Special Weapon . | . . . . Impact Weapon . | . . . . Slashing Weapon . | . . . . Piercing Weapon . | . . . . Special Melee Weapon . | . . . . Unidentified Prototypes 1 | . . . 1 Parts Lost 14 | . . . 14 Power 2 | . . . 2 Propulsion 4 | . . . 4 Utility 1 | . . . 1 Weapon 7 | . . . 7 Highest Loss Streak 12 | . . . 12 To Critical Strikes . | . . . . Average Backups . | . . . 1 Power . | . . . . Propulsion . | . . . . Utility . | . . . . Weapon . | . . . 1 Tool/Special . | . . . . Unused Backups 4 | . . . 4 Power . | . . . . Propulsion 2 | . . . 2 Utility 1 | . . . 1 Weapon 1 | . . . 1 Tool/Special . | . . . . Average Slot Usage (%) 64 | . 71 71 59 Engine 11 | . 14 14 9 Treads 22 | . 28 28 18 Device 3 | . . . 5 Processor 4 | . . . 8 Ballistic Gun 21 | . 28 28 16 Peak Build Rating 12 | 5 5 5 12 Average Rating 5 | 3 5 5 7 On Entrance 3 | . 5 5 5 Naked Turns . | . . . . Heaviest Build 25 | 7 7 7 25 Greatest Support 40 | 40 40 40 40 Greatest Overweight (x) 2 | . . . 2 Average Overweight (x) . | . . . . Largest Inventory Capacity 15 | 5 5 5 15 Average Capacity 5 | 5 5 5 5 Most Carried 5 | 4 . . 5 Average Carried . | . . . 1 Final Capacity 15 | 5 5 5 15 Final Carried 4 | . . . 4 Class Distribution -------------------- 95% | Mutant 4% | Scavenger-Mutant Dominant Class ---------------- Mutant | -10/Materials Mutant | -10/Mines Mutant | -9/Materials Resources | -11 -10 -10 -9 ----------- Run | Yrd Mat Min Mat Matter Collected 335 | 191 . 42 102 Remotely . | . . . . Salvage Created 376 | . . 42 334 Parts 20 | . . 7 13 Haulers Intercepted 3 | . . . 3 Recyclers Shooed 1 | . . . 1 Parts Field Recycled . | . . . . Retrieved Matter . | . . . . Parts Self-Destructed . | . . . . Prevented . | . . . . Kills | -11 -10 -10 -9 ------- Run | Yrd Mat Min Mat Combat Hostiles Destroyed 7 | . . 3 4 Guns 7 | . . 3 4 Classes Destroyed 4 | . . 1 3 Hauler 3 | . . . 3 Swarmer 3 | . . 3 . Grunt 3 | . . . 3 Sentry 1 | . . . 1 Best Kill Streak 3 | . . 3 3 Combat Bots Only 3 | . . 3 3 Max Kills in Single Turn 1 | . . 1 1 Gunslinging . | . . . . Exploded . | . . . . Melee . | . . . . Uniques/NPCs Destroyed . | . . . . Combat | -11 -10 -10 -9 -------- Run | Yrd Mat Min Mat Hostile Shots Fired 195 | . 3 28 164 Missed 56 | . 1 10 45 Hits 139 | . 2 18 119 Projectile 139 | . 2 18 119 AOE 1 | . . . 1 Critical Strikes 2 | . . . 2 Damage Taken 1774 | . 21 177 1576 Core 451 | . 10 38 403 Absorbed by Shields 74 | . . . 74 Core Remaining (%) 90 | 100 . 80 . Volleys Fired 36 | . . 6 30 Largest 2 | . . 2 2 Hottest 90 | . . 40 90 Shots Fired 58 | . . 12 46 Gun 58 | . . 12 46 Cannon . | . . . . Launcher . | . . . . Special . | . . . . Kinetic 52 | . . 12 40 Thermal 2 | . . . 2 Explosive . | . . . . Electromagnetic 4 | . . . 4 Robot Hit Streak 16 | . . 4 16 Robot Miss Streak 3 | . . 3 2 Penetration Max . | . . . . Secondary Targets 2 | . . 1 1 Max Gunslinging Chain 1 | . . 1 1 Shots Hit Robots 43 | . . 6 37 Core Hits 18 | . . 3 15 Critical Kills . | . . . . Critical Parts Destroyed . | . . . . Critical Strikes . | . . . . Melee Attacks . | . . . . Impact . | . . . . Slashing . | . . . . Piercing . | . . . . Sneak Attacks . | . . . . Combat Hostiles . | . . . . Follow-up Attacks . | . . . . Damage Inflicted 587 | . . 74 513 Guns 584 | . . 71 513 Cannons . | . . . . Explosions . | . . . . Melee . | . . . . Ramming 3 | . . 3 . Kinetic 499 | . . 71 428 Thermal 15 | . . . 15 Explosive . | . . . . Electromagnetic 70 | . . . 70 Impact . | . . . . Slashing . | . . . . Piercing . | . . . . Highest Corruption . | . . . . Average Corruption . | . . . . Corruption Purged . | . . . . Corruption Blocked . | . . . . Overload Shots . | . . . . Overflow Damage . | . . . . Projectiles . | . . . . Explosions . | . . . . Melee . | . . . . Knockbacks . | . . . . Impact . | . . . . Kinetic . | . . . . Secondary . | . . . . Self-Inflicted Damage . | . . . . Shots . | . . . . Rammed 1 | . . 1 . Targets Rammed 1 | . . 1 . Kicked . | . . . . Crushed . | . . . . Highest Temperature 35 | . . . 35 Average Temperature 13 | . . . 13 Received Heat Transfer 822 | . 12 39 771 Siege Activations . | . . . . Martial Activations . | . . . . Shielding Activations . | . . . . Robots Disrupted . | . . . . Combat Hostiles . | . . . . Robots Corrupted . | . . . . Combat Hostiles . | . . . . Parts Fried . | . . . . Impact Corruptions . | . . . . Robots Melted . | . . . . Combat Hostiles . | . . . . Parts Melted 1 | . . . 1 Heat Transferred 37 | . . . 37 Parts Sabotaged . | . . . . Parts Stolen . | . . . . Parts Stripped . | . . . . Power Chain Reactions . | . . . . Alert | -11 -10 -10 -9 ------- Run | Yrd Mat Min Mat Maximum Alert Level . | . . . . Low Security (%) 100 | 100 100 100 100 Level 1 . | . . . . Level 2 . | . . . . Level 3 . | . . . . Level 4 . | . . . . Level 5 . | . . . . High Security . | . . . . Max Security . | . . . . Peak Influence 60 | . . 60 40 Initial . | . . . . Average 6 | . . 15 2 Influence Increases 191 | . . 70 121 Destroy 0b10 Robot/C 140 | . . 60 80 Destroy 0b10 Robot/NC 15 | . . . 15 Destroy Leader 36 | . . 10 26 Influence Decreases 191 | . . 70 121 Time Decay 122 | . . 70 52 Lost Part 69 | . . . 69 Squads Dispatched 2 | . 1 . 1 Investigation 1 | . 1 . . Extermination . | . . . . Reinforcement 1 | . . . 1 Assault . | . . . . Garrison . | . . . . Intercept . | . . . . Searches Triggered . | . . . . Construction Impeded . | . . . . Haulers Reinforced . | . . . . Active Scanning Responses . | . . . . Cargo Convoy Interrupts . | . . . . Stealth | -11 -10 -10 -9 --------- Run | Yrd Mat Min Mat Distress Signals 2 | . . . 2 Communications Jammed . | . . . . Distress Signals . | . . . . Times Spotted 22 | . 4 5 13 Peak Tracking Total 8 | . 2 3 8 Tactical Retreats . | . . . . Traps | -11 -10 -10 -9 ------- Run | Yrd Mat Min Mat Traps Triggered 1 | . 1 . . Indirectly . | . . . . Trap Hack Attempts . | . . . . Triggered . | . . . . Disarmed . | . . . . Reprogrammed . | . . . . Reused . | . . . . Traps Extracted . | . . . . Installed . | . . . . Triggered . | . . . . Machines | -11 -10 -10 -9 ---------- Run | Yrd Mat Min Mat Machines Disabled . | . . . . Max in Single Turn . | . . . . Machines Repaired . | . . . . Machines Dismantled . | . . . . Machines Sabotaged . | . . . . Overloaded Fab Kills . | . . . . Hacking | -11 -10 -10 -9 --------- Run | Yrd Mat Min Mat Machines Accessed 2 | . 1 . 1 Terminals 1 | . . . 1 Fabricators . | . . . . Repair Stations 1 | . 1 . . Recycling Units . | . . . . Scanalyzers . | . . . . Garrison Access . | . . . . Total Hacks 6 | . 3 . 3 Successful . | . . . . Failed 6 | . 3 . 3 Catastrophic 1 | . . . 1 Database Lockouts . | . . . . Manual 3 | . . . 3 Terminals 3 | . . . 3 Fabricators . | . . . . Repair Stations 3 | . 3 . . Recycling Units . | . . . . Scanalyzers . | . . . . Garrison Access . | . . . . Terminal Hacks . | . . . . Fabricator Hacks . | . . . . Repair Station Hacks . | . . . . Recycling Unit Hacks . | . . . . Scanalyzer . | . . . . Garrison Access Hacks . | . . . . Unauthorized Hacks . | . . . . Terminals . | . . . . Fabricators . | . . . . Repair Stations . | . . . . Recycling Units . | . . . . Scanalyzers . | . . . . Garrison Access . | . . . . Data Cores Recovered . | . . . . Used . | . . . . Hacking Detections 2 | . 1 . 1 Full Trace Events . | . . . . Feedback Events . | . . . . Feedback Blocked . | . . . . Robot Schematics Acquired . | . . . . Robots Built . | . . . . Authchips . | . . . . Time . | . . . . Total Robot Build Rating . | . . . . Part Schematics Acquired . | . . . . Parts Built . | . . . . Authchips . | . . . . Time . | . . . . Total Part Build Rating . | . . . . Parts Repaired . | . . . . Time . | . . . . Parts Recycled . | . . . . Recycled Matter . | . . . . Retrieved Matter . | . . . . Retrieved Components . | . . . . Parts Scanalyzed . | . . . . Part Schematics Acquired . | . . . . Parts Damaged . | . . . . Bothacking | -11 -10 -10 -9 ------------ Run | Yrd Mat Min Mat Used RIF Installer . | . . . . Robots Hacked . | . . . . Non-combat . | . . . . Combat . | . . . . Robot Hacks Applied . | . . . . Relay Couplers Released . | . . . . Fabnet Peak Effective % . | . . . . Robots Rewired . | . . . . Allies Hacked . | . . . . Hacks Repelled . | . . . . Allies | -11 -10 -10 -9 -------- Run | Yrd Mat Min Mat Total Allies . | . . . . Largest Group . | . . . . Highest-Rated Group . | . . . . Highest-Rated Ally . | . . . . Total Orders . | . . . . Ally Attacks . | . . . . Total Damage . | . . . . Kills . | . . . . Allies Corrupted . | . . . . Allies Melted . | . . . . Intel | -11 -10 -10 -9 ------- Run | Yrd Mat Min Mat Active Infowar (turns) 157 | . . . 157 T.N.C. 157 | . . . 157 Robot Analysis Total . | . . . . Derelict Logs Recovered 1 | . . 1 . Drone Launches . | . . . . Drone Recoveries . | . . . . Exploration | -11 -10 -10 -9 ------------- Run | Yrd Mat Min Mat Turns Passed 925 | 58 117 287 463 Spaces Moved 509 | 38 74 167 230 Core 38 | 15 . . 23 Treads 471 | 23 74 167 207 Legs . | . . . . Wheels . | . . . . Hover . | . . . . Flight . | . . . . Fastest Speed 50 | 50 160 160 50 Average Speed 153 | 116 160 160 152 Slowest Speed 240 | 160 160 160 240 Overloaded Moves . | . . . . Propulsion Burnouts . | . . . . Robots Hopped . | . . . . Potential Cave-ins . | . . . . Cave-ins Triggered . | . . . . Exploration Rate (%) 21 | 4 16 40 25 Regions Visited 3 Branch Regions 1 Pre-discovered Areas . | . . . . Known Exits Taken . | . . . . Unknown Exits Taken 3 | 1 1 1 . Scrap Searched . | . . . . Spaces Dug . | . . . . Terrain Destroyed . | . . . . Melee . | . . . . Projectile . | . . . . AOE . | . . . . Terrain Rammed . | . . . . Walls Destroyed . | . . . . Machines Disabled . | . . . . Actions | -11 -10 -10 -9 --------- Run | Yrd Mat Min Mat Total 596 | 52 73 174 297 Wait 10 | 5 . 1 4 Move 506 | 37 73 166 230 Hop . | . . . . Pick Up 23 | 5 . . 18 Fast Attach . | . . . . Attach 19 | 5 . . 14 Detach . | . . . . Swap 1 | . . . 1 Drop . | . . . . Fire 36 | . . 6 30 Melee . | . . . . Ram . | . . . . Kick . | . . . . Crush 1 | . . 1 . Escape Stasis . | . . . . Rewire . | . . . . Trap . | . . . . Miscellaneous . | . . . . Route ------- -11/Scrapyard -10/Materials -10/Mines -9/Materials (discovered 2 exits: [*Min x2]) History --------- Turn | Location | Event 2 | -11/Scrapyard | Met Revision 17 5 | -11/Scrapyard | Discovered new exit (range 16) 59 | -11/Scrapyard | Entered Materials 155 | -10/Materials | Discovered new exit (range 8) 176 | -10/Materials | Entered Mines 307 | -10/Mines | Build established: Mutant 443 | -10/Mines | Discovered new exit (range 13) 445 | -10/Mines | Learned 2 Materials zone layouts 463 | -10/Mines | Entered Materials 463 | -9/Materials | Evolved 2 slots: Propulsion x1, Utility x1 828 | -9/Materials | Discovered new exit (range 15) 848 | -9/Materials | Core integrity fell below 50% 895 | -9/Materials | Discovered new exit (range 7) 898 | -9/Materials | Lost 12 parts (2p3n1u6w) 912 | -9/Materials | Core integrity fell below 20% 926 | -9/Materials | Destroyed by G-34 Mercenary with Small Laser Last Messages --------------- 00868_ Acquired Med. Storage Unit. 00869_ K-01 Serf collects debris. 00870_ Acquired Lgt. Treads. 00872_ K-01 Serf collects debris. 00873_ U-05 Engineer works on Matter Pump. 00873_ Critical hit (Burn: +37). 00874_ Acquired Ion Engine. 00876_ U-05 Engineer works on Matter Pump. 00883_ O-16 Technician: "IFF HANDSHAKE FAILED. SECURING TERMINAL." 00892_ ALERT: Hostiles spotted, dispatching reinforcements to Terminal M010. 00895_ EXIT=FOUND 00895_ W-16 Scout sends out distress signal. 00903_ K-01 Serf collects debris. 00906_ Acquired Lrg. Storage Unit. 00914_ Lgt. Treads destroyed. 00917_ Machine disabled. 00917_ K-01 Serf collects debris. [Achievement: Achiever] Map ----- +----------------------------------------------------+ | ?????????????????????????????????????????????????? | | ?????????????????????????????????????????????????? | | ?????????????????????????????????????????????????? | | ?????????????????????????????????????????????????? | | ?????????????????????????????????????????????????? | | ?????????????????????????????????????????????????? | | ?????????????????????????????????????????????????? | | ?????????????????????????????????????????????????? | | ?????????????????????????????????????????????????? | | ?????????????????????????????????????????????????? | | ?????????????????????????????????????????????????? | | ???????????????????????????? #???????????????????? | | ??????????????????????????? #???????????????????? | | ??????????????????????????? #???????????????????? | | ?????????????????????????? #???????????????????? | | ?????????????????????????? #???????????????????? | | ?????????????????????????? #???????????????????? | | ?????????????????????????? #???????????????????? | | ?????????????????????????# #???????????????????? | | ?????????????????????????# o#???????????????????? | | ?????????????????????????/ +???????????????????? | | ?????????????????????????# #???????????????????T | | ????a?????????????????#### ##??????????????????? | | ??????????????????????#"" #??????????????????? | | ??????????????????????#" #??????????????????? | | ??????????????????????#"|@ Y #????????????+##### | | ??????????????????????#"" < #???????????? ? | | ??????????????????????#"| w #???????????? #?? | | ??????????????????????#" g #????????#### ^ #?? | | ??????????????????????#"" k #????????# ^^ ??? | | ??????????????????????#### ########??# #????? | | ?????????????????????##! g# #### #??### | | ?????????????????????#! g/ """ / % #??# | | ?????????????????????# g # """ # ! #??# | | ?????????????????????#! # """ # #### | | ?????????????????????#! # # *a!!""## | | ?????????????????????##! w # # [!%!""## | | ??????????????????????#### ########* !!T"## " | | ????????????????????????? #??????# ! ""## " | | ????????????????????????## #????### ""#" " | | ????????????????????????# ##### #####" | | ????????????????????????# | | ????????????????????????# < % % | | ????????????????????????# ! !!%! = | | ????????????????????????# # """ """ !""" | | ????????????????????????####### """ """ """ | | ??????????????????????????????# """ """ * | | ??????????????????????????????# | | ??????????????????????????????? | | ??????????????????????????????? # | +----------------------------------------------------+ Best States ------------- Heat Dissipation 28 Energy Generation 12 Energy Capacity 265 Matter Stores 251 Matter Capacity 300 Sight Range 16 Terrain Scan Density 10 Evasion (%) 50 Targeting Accuracy 6 Recoil Reduction 2 Item Schematics ----------------- None Robot Schematics ------------------ None Fabricated ------------ Nothing Repaired ---------- Nothing Alien Tech Used ----------------- None Achievements -------------- Achiever Challenges ------------ None Game ------ Seed WeightDeuteriumNanoactuators Manual? 0 Play Time 00:10:17 Cumulative 19.1 hours Start 2025.07.11 @ 13:32:18 End 2025.07.11 @ 13:40:32 Sessions 1 Manual Loads 0 Difficulty Rogue Special Mode None Game No. 29 Rogue 29 Adventurer 0 Explorer 0 Win Type - Total 0 Types 0/0/0/0/0/0/0/0/0/0 Lore% 17 Gallery% 18 Achievement% 25 Wizard Run 0 Options --------- Layout 1 ASCII 0 Keyboard 0 Movement Mouse Keybinds 0 Fullscreen 1 Font 24/Smallcaps Map View 50x35 Zoom Use 0% Tactical HUD 1 Map Filters NONE Filters NONE Steam 1 RUN: a9ce2809-d169-4174-8f22-55643f061e0a